[Event "*** Titled Tuesday Blitz"]
[Site "Chess.com"]
[Date "2020.05.12"]
[Round "6"]
[White "BogdanDeac"]
[Black "VishnuPrasanna"]
[Result "1-0"]
[WhiteElo "2930"]
[BlackElo "2701"]
[TimeControl "180+1"]
[EndTime "11:07:48 PDT"]
[Termination "BogdanDeac won by checkmate"]

1. Nf3 {[%clk 0:03:00.9]} 1... c5 {[%clk 0:02:59.3]} 2. c4 {[%clk 0:02:58.4]}
2... Nc6 {[%clk 0:02:58.7]} 3. e3 {[%clk 0:02:58.7]} 3... Nf6 {[%clk 0:02:57.6]}
4. Nc3 {[%clk 0:02:58.3]} 4... d5 {[%clk 0:02:55.2]} 5. cxd5 {[%clk 0:02:57.9]}
5... Nxd5 {[%clk 0:02:56.1]} 6. Bb5 {[%clk 0:02:58]} 6... Nxc3 {[%clk
0:02:56.4]} 7. bxc3 {[%clk 0:02:57.9]} 7... Bd7 {[%clk 0:02:56.9]} 8. O-O {[%clk
0:02:58]} 8... e6 {[%clk 0:02:57.2]} 9. d4 {[%clk 0:02:57.5]} 9... Bd6 {[%clk
0:02:57.3]} 10. e4 {[%clk 0:02:56.7]} 10... O-O {[%clk 0:02:57]} 11. Qe2 {[%clk
0:02:45.8]} 11... cxd4 {[%clk 0:02:55.4]} 12. cxd4 {[%clk 0:02:45]} 12... a6
{[%clk 0:02:55.9]} 13. Bc4 {[%clk 0:02:44.1]} 13... Rc8 {[%clk 0:02:50.2]} 14.
a4 {[%clk 0:02:40.3]} 14... Na5 {[%clk 0:02:43.9]} 15. Bd3 {[%clk 0:02:22.6]}
15... Nb3 {[%clk 0:02:43.2]} 16. Rb1 {[%clk 0:02:20.2]} 16... Nxc1 {[%clk
0:02:43.1]} 17. Rfxc1 {[%clk 0:02:19.3]} 17... Rxc1+ {[%clk 0:02:43.4]} 18. Rxc1
{[%clk 0:02:19.3]} 18... Bxa4 {[%clk 0:02:43.9]} 19. h4 {[%clk 0:02:03.8]} 19...
g6 {[%clk 0:02:24.8]} 20. h5 {[%clk 0:02:02.5]} 20... Re8 {[%clk 0:02:25]} 21.
Qb2 {[%clk 0:01:54.6]} 21... Bc6 {[%clk 0:02:19.8]} 22. hxg6 {[%clk 0:01:48.7]}
22... hxg6 {[%clk 0:02:19.6]} 23. d5 {[%clk 0:01:11.4]} 23... exd5 {[%clk
0:02:19.2]} 24. e5 {[%clk 0:01:11.3]} 24... Bf8 {[%clk 0:02:16]} 25. Nd4 {[%clk
0:01:04.6]} 25... Qg5 {[%clk 0:02:16.1]} 26. Nxc6 {[%clk 0:00:49]} 26... bxc6
{[%clk 0:02:17]} 27. Rxc6 {[%clk 0:00:46.7]} 27... Rxe5 {[%clk 0:02:16.5]} 28.
Bxa6 {[%clk 0:00:41.1]} 28... Re1+ {[%clk 0:01:58.3]} 29. Bf1 {[%clk 0:00:40.7]}
29... Qf4 {[%clk 0:01:58.4]} 30. Rc8 {[%clk 0:00:35.2]} 30... Qf5 {[%clk
0:01:42.5]} 31. Qb8 {[%clk 0:00:27.6]} 31... Rxf1+ {[%clk 0:01:11.9]} 32. Kxf1
{[%clk 0:00:26.7]} 32... Qd3+ {[%clk 0:01:12.5]} 33. Ke1 {[%clk 0:00:26.6]}
33... Qe4+ {[%clk 0:01:13]} 34. Kd1 {[%clk 0:00:26.5]} 34... Qd4+ {[%clk
0:01:13.2]} 35. Kc1 {[%clk 0:00:23.1]} 35... Qa1+ {[%clk 0:01:12.9]} 36. Kc2
{[%clk 0:00:20.4]} 36... Qa4+ {[%clk 0:01:11.5]} 37. Kd3 {[%clk 0:00:19.9]}
37... Qe4+ {[%clk 0:01:11.3]} 38. Kc3 {[%clk 0:00:19.9]} 38... Qe7 {[%clk
0:01:07.4]} 39. Re8 {[%clk 0:00:15.6]} 39... Qc5+ {[%clk 0:01:07.7]} 40. Kd3
{[%clk 0:00:15.6]} 40... Kh7 {[%clk 0:01:08.1]} 41. Rxf8 {[%clk 0:00:14]} 41...
Qc4+ {[%clk 0:01:08.3]} 42. Kd2 {[%clk 0:00:13.7]} 42... d4 {[%clk 0:01:08]} 43.
Rh8+ {[%clk 0:00:11.5]} 43... Kg7 {[%clk 0:01:07.5]} 44. Qf8+ {[%clk 0:00:11.4]}
44... Kf6 {[%clk 0:01:08]} 45. Qd8+ {[%clk 0:00:11.5]} 45... Kg7 {[%clk
0:01:08.3]} 46. Re8 {[%clk 0:00:10.4]} 46... Qc3+ {[%clk 0:01:07.6]} 47. Ke2
{[%clk 0:00:09.2]} 47... Qc2+ {[%clk 0:01:06.2]} 48. Kf3 {[%clk 0:00:09.3]}
48... Qd3+ {[%clk 0:01:01.4]} 49. Kf4 {[%clk 0:00:09.4]} 49... Qf5+ {[%clk
0:00:54.8]} 50. Kg3 {[%clk 0:00:09.4]} 50... Qc5 {[%clk 0:00:53.2]} 51. f3
{[%clk 0:00:06.7]} 51... d3 {[%clk 0:00:51.4]} 52. Re4 {[%clk 0:00:05.2]} 52...
Qc6 {[%clk 0:00:38.8]} 53. Qd4+ {[%clk 0:00:04.5]} 53... Kg8 {[%clk 0:00:39.1]}
54. Qxd3 {[%clk 0:00:04.9]} 54... Qc7+ {[%clk 0:00:39.1]} 55. f4 {[%clk
0:00:03.5]} 55... Qc8 {[%clk 0:00:38.4]} 56. Rd4 {[%clk 0:00:03.5]} 56... Qc1
{[%clk 0:00:35.9]} 57. Rd8+ {[%clk 0:00:04.4]} 57... Kh7 {[%clk 0:00:36]} 58.
Qd4 {[%clk 0:00:05.3]} 58... Qe1+ {[%clk 0:00:35.4]} 59. Kh3 {[%clk 0:00:05]}
59... Qh1+ {[%clk 0:00:34.8]} 60. Kg3 {[%clk 0:00:04.9]} 60... Qe1+ {[%clk
0:00:34.9]} 61. Kf3 {[%clk 0:00:05.4]} 61... Qf1+ {[%clk 0:00:34.8]} 62. Qf2
{[%clk 0:00:05.5]} 62... Qh1 {[%clk 0:00:33.8]} 63. Rd2 {[%clk 0:00:04.8]} 63...
f5 {[%clk 0:00:31.9]} 64. Qg3 {[%clk 0:00:04.4]} 64... Qf1+ {[%clk 0:00:30.9]}
65. Ke3 {[%clk 0:00:04.5]} 65... Qb5 {[%clk 0:00:29.2]} 66. Qh4+ {[%clk
0:00:04.3]} 66... Kg7 {[%clk 0:00:29.5]} 67. Qe7+ {[%clk 0:00:04.3]} 67... Kh6
{[%clk 0:00:29.8]} 68. Qf8+ {[%clk 0:00:02.5]} 68... Kh5 {[%clk 0:00:28.7]} 69.
Qh8+ {[%clk 0:00:02.4]} 69... Kg4 {[%clk 0:00:27.2]} 70. Qh3# {[%clk 0:00:03.3]}
1-0

[Event "*** Titled Tuesday Blitz"]
[Site "Chess.com"]
[Date "2020.05.12"]
[Round "6"]
[White "Steven_Rojas"]
[Black "Boudicca64"]
[Result "1/2-1/2"]
[WhiteElo "2349"]
[BlackElo "2040"]
[TimeControl "180+1"]
[EndTime "11:07:49 PDT"]
[Termination "Game drawn by repetition"]

1. c4 {[%clk 0:03:00.9]} 1... e6 {[%clk 0:02:59.5]} 2. Nc3 {[%clk 0:03:00.9]}
2... d5 {[%clk 0:02:59.7]} 3. e3 {[%clk 0:03:01.5]} 3... Nf6 {[%clk 0:02:55.3]}
4. Nf3 {[%clk 0:03:02]} 4... Be7 {[%clk 0:02:55]} 5. b3 {[%clk 0:03:02.5]} 5...
c5 {[%clk 0:02:50.9]} 6. cxd5 {[%clk 0:02:54.9]} 6... Nxd5 {[%clk 0:02:51.8]} 7.
Bb2 {[%clk 0:02:54.5]} 7... Nc6 {[%clk 0:02:47.3]} 8. Be2 {[%clk 0:02:43.8]}
8... Bf6 {[%clk 0:02:47]} 9. O-O {[%clk 0:02:41.5]} 9... O-O {[%clk 0:02:46.4]}
10. Qc1 {[%clk 0:02:30.7]} 10... Ndb4 {[%clk 0:02:40.4]} 11. Ne4 {[%clk
0:02:29.7]} 11... Bxb2 {[%clk 0:02:28.4]} 12. Qxb2 {[%clk 0:02:28.7]} 12... b6
{[%clk 0:02:26.9]} 13. a3 {[%clk 0:02:00.2]} 13... Nd5 {[%clk 0:02:16.2]} 14.
Rfd1 {[%clk 0:01:56.2]} 14... Qe7 {[%clk 0:02:08.2]} 15. d4 {[%clk 0:01:50.2]}
15... cxd4 {[%clk 0:01:41.2]} 16. Nxd4 {[%clk 0:01:51.1]} 16... Nxd4 {[%clk
0:01:35.4]} 17. Rxd4 {[%clk 0:01:47.8]} 17... Bb7 {[%clk 0:01:35.4]} 18. Rad1
{[%clk 0:01:46]} 18... Rfd8 {[%clk 0:01:26.3]} 19. Bf3 {[%clk 0:01:45.4]} 19...
Rab8 {[%clk 0:00:50.9]} 20. b4 {[%clk 0:01:19]} 20... Ba8 {[%clk 0:00:22.1]} 21.
Qe2 {[%clk 0:01:10.2]} 21... Nf6 {[%clk 0:00:20.7]} 22. Nd6 {[%clk 0:01:04.8]}
22... Bxf3 {[%clk 0:00:19.4]} 23. Qxf3 {[%clk 0:01:05.7]} 23... Ne8 {[%clk
0:00:18.7]} 24. Ne4 {[%clk 0:00:59.9]} 24... Rxd4 {[%clk 0:00:17.8]} 25. Rxd4
{[%clk 0:01:00.8]} 25... Rd8 {[%clk 0:00:17.8]} 26. Qd1 {[%clk 0:01:01.1]} 26...
Rxd4 {[%clk 0:00:17]} 27. Qxd4 {[%clk 0:01:02]} 27... Nf6 {[%clk 0:00:17.1]} 28.
Nxf6+ {[%clk 0:01:02.3]} 28... Qxf6 {[%clk 0:00:18]} 29. Qxf6 {[%clk 0:00:59.7]}
29... gxf6 {[%clk 0:00:18.9]} 30. Kf1 {[%clk 0:00:59.3]} 30... Kf8 {[%clk
0:00:19.7]} 31. Ke2 {[%clk 0:00:59.9]} 31... Ke7 {[%clk 0:00:20.6]} 32. Kd3
{[%clk 0:01:00.6]} 32... Kd6 {[%clk 0:00:21.5]} 33. Kc4 {[%clk 0:01:01.2]} 33...
Kc6 {[%clk 0:00:22]} 34. e4 {[%clk 0:00:34.9]} 34... h6 {[%clk 0:00:17.3]} 35.
f4 {[%clk 0:00:30]} 35... e5 {[%clk 0:00:14.2]} 36. g3 {[%clk 0:00:27.5]} 36...
a6 {[%clk 0:00:10.4]} 37. a4 {[%clk 0:00:26.2]} 37... b5+ {[%clk 0:00:09.3]} 38.
axb5+ {[%clk 0:00:26.5]} 38... axb5+ {[%clk 0:00:10.2]} 39. Kd3 {[%clk
0:00:26.9]} 39... Kd6 {[%clk 0:00:11]} 40. Ke3 {[%clk 0:00:26.3]} 40... h5
{[%clk 0:00:10]} 41. f5 {[%clk 0:00:13.3]} 41... Ke7 {[%clk 0:00:09.6]} 42. Kf3
{[%clk 0:00:10.8]} 42... Kf8 {[%clk 0:00:09.7]} 43. Kg2 {[%clk 0:00:11.3]} 43...
Kg7 {[%clk 0:00:09.6]} 44. Kh3 {[%clk 0:00:11.9]} 44... Kh7 {[%clk 0:00:09.7]}
45. Kh4 {[%clk 0:00:12.4]} 45... Kh6 {[%clk 0:00:10]} 46. h3 {[%clk 0:00:12.9]}
46... Kg7 {[%clk 0:00:05.4]} 47. Kxh5 {[%clk 0:00:13.5]} 47... Kh7 {[%clk
0:00:06]} 48. g4 {[%clk 0:00:14.1]} 48... Kg7 {[%clk 0:00:06.4]} 49. h4 {[%clk
0:00:14.7]} 49... Kh7 {[%clk 0:00:06.6]} 50. g5 {[%clk 0:00:15.3]} 50... Kg7
{[%clk 0:00:06.8]} 51. gxf6+ {[%clk 0:00:14.7]} 51... Kh7 {[%clk 0:00:06.7]} 52.
Kg4 {[%clk 0:00:10.4]} 52... Kh6 {[%clk 0:00:07.1]} 53. Kh3 {[%clk 0:00:08.6]}
53... Kh7 {[%clk 0:00:04.4]} 54. Kg3 {[%clk 0:00:09.5]} 54... Kh6 {[%clk
0:00:03.6]} 55. Kg4 {[%clk 0:00:10.4]} 55... Kh7 {[%clk 0:00:04.2]} 56. Kh5
{[%clk 0:00:11.3]} 56... Kg8 {[%clk 0:00:04.1]} 57. Kh6 {[%clk 0:00:12.2]} 57...
Kh8 {[%clk 0:00:04.7]} 58. h5 {[%clk 0:00:12.5]} 58... Kg8 {[%clk 0:00:05.3]}
59. Kg5 {[%clk 0:00:12.4]} 59... Kh8 {[%clk 0:00:05.8]} 60. h6 {[%clk
0:00:13.3]} 60... Kg8 {[%clk 0:00:06.1]} 61. h7+ {[%clk 0:00:12.3]} 61... Kxh7
{[%clk 0:00:06.2]} 62. Kh5 {[%clk 0:00:13.2]} 62... Kg8 {[%clk 0:00:06.6]} 63.
Kh6 {[%clk 0:00:14.1]} 63... Kh8 {[%clk 0:00:07.1]} 64. Kg5 {[%clk 0:00:14.8]}
64... Kh7 {[%clk 0:00:07.4]} 65. Kh5 {[%clk 0:00:15.7]} 65... Kg8 {[%clk
0:00:07.7]} 66. Kh4 {[%clk 0:00:16.6]} 66... Kh7 {[%clk 0:00:07.9]} 67. Kh3
{[%clk 0:00:17.5]} 67... Kh6 {[%clk 0:00:08.3]} 68. Kg4 {[%clk 0:00:18.4]} 68...
Kh7 {[%clk 0:00:08.7]} 69. Kg5 {[%clk 0:00:19.3]} 69... Kg8 {[%clk 0:00:09.2]}
70. Kh6 {[%clk 0:00:20.2]} 70... Kh8 {[%clk 0:00:09.5]} 71. Kh5 {[%clk
0:00:20.7]} 71... Kh7 {[%clk 0:00:10]} 72. Kg4 {[%clk 0:00:21.6]} 72... Kh6
{[%clk 0:00:10.4]} 73. Kf3 {[%clk 0:00:22.5]} 73... Kg5 {[%clk 0:00:10.7]} 74.
Kg3 {[%clk 0:00:23]} 74... Kxf6 {[%clk 0:00:10.7]} 75. Kg4 {[%clk 0:00:23.5]}
75... Kg7 {[%clk 0:00:10.1]} 76. Kh5 {[%clk 0:00:21.9]} 76... f6 {[%clk
0:00:09.6]} 77. Kg4 {[%clk 0:00:22.1]} 77... Kh7 {[%clk 0:00:08.4]} 78. Kh4
{[%clk 0:00:23]} 78... Kg7 {[%clk 0:00:09]} 79. Kg4 {[%clk 0:00:23.9]} 79... Kh7
{[%clk 0:00:09]} 80. Kh5 {[%clk 0:00:24.8]} 80... Kg7 {[%clk 0:00:09.4]} 81. Kh4
{[%clk 0:00:25.7]} 81... Kh6 {[%clk 0:00:09.8]} 82. Kg4 {[%clk 0:00:25.9]} 82...
Kg7 {[%clk 0:00:10.3]} 83. Kg3 {[%clk 0:00:26.5]} 83... Kh7 {[%clk 0:00:09.9]}
84. Kh3 {[%clk 0:00:26.8]} 84... Kh6 {[%clk 0:00:10.2]} 85. Kg4 {[%clk
0:00:26.9]} 85... Kh7 {[%clk 0:00:11.1]} 1/2-1/2

[Event "*** Titled Tuesday Blitz"]
[Site "Chess.com"]
[Date "2020.05.12"]
[Round "6"]
[White "FM_VS99"]
[Black "ajdemipopushi"]
[Result "0-1"]
[WhiteElo "2357"]
[BlackElo "2222"]
[TimeControl "180+1"]
[EndTime "11:07:52 PDT"]
[Termination "ajdemipopushi won by resignation"]

1. c4 {[%clk 0:03:00.9]} 1... c5 {[%clk 0:02:59.5]} 2. g3 {[%clk 0:03:01.8]}
2... g6 {[%clk 0:02:59.9]} 3. Bg2 {[%clk 0:02:58.4]} 3... Bg7 {[%clk 0:03:00.5]}
4. Nf3 {[%clk 0:02:59.3]} 4... Nc6 {[%clk 0:03:00.6]} 5. Nc3 {[%clk 0:02:59.9]}
5... e6 {[%clk 0:03:00.3]} 6. d3 {[%clk 0:02:57.9]} 6... Nge7 {[%clk 0:03:00]}
7. Bg5 {[%clk 0:02:58.5]} 7... h6 {[%clk 0:02:59.6]} 8. Bd2 {[%clk 0:02:58.5]}
8... O-O {[%clk 0:02:58.8]} 9. O-O {[%clk 0:02:59.1]} 9... b6 {[%clk 0:02:47.5]}
10. a3 {[%clk 0:02:58.4]} 10... Bb7 {[%clk 0:02:46.3]} 11. Rb1 {[%clk
0:02:58.5]} 11... d5 {[%clk 0:02:42.7]} 12. Qc1 {[%clk 0:02:56.5]} 12... Kh7
{[%clk 0:02:41.5]} 13. b4 {[%clk 0:02:56.5]} 13... cxb4 {[%clk 0:02:34.5]} 14.
axb4 {[%clk 0:02:56.7]} 14... dxc4 {[%clk 0:02:30.9]} 15. dxc4 {[%clk
0:02:57.6]} 15... Rc8 {[%clk 0:02:29]} 16. c5 {[%clk 0:02:42.6]} 16... bxc5
{[%clk 0:02:12.3]} 17. bxc5 {[%clk 0:02:42.4]} 17... Ba8 {[%clk 0:02:12.2]} 18.
Rd1 {[%clk 0:02:40.6]} 18... Qe8 {[%clk 0:01:48.5]} 19. Nb5 {[%clk 0:02:33.3]}
19... Nf5 {[%clk 0:01:46.8]} 20. Qa3 {[%clk 0:02:12]} 20... Ncd4 {[%clk
0:01:22.1]} 21. Nfxd4 {[%clk 0:01:57.7]} 21... Nxd4 {[%clk 0:01:21.7]} 22. Nxd4
{[%clk 0:01:55.2]} 22... Bxd4 {[%clk 0:01:07.9]} 23. Bxa8 {[%clk 0:01:48.8]}
23... Rxa8 {[%clk 0:01:06.8]} 24. Bxh6 {[%clk 0:01:46.5]} 24... Bxf2+ {[%clk
0:01:05.1]} 25. Kxf2 {[%clk 0:01:46.3]} 25... Kxh6 {[%clk 0:01:05.2]} 26. Qe3+
{[%clk 0:01:42.8]} 26... Kg7 {[%clk 0:00:52.4]} 27. Rb7 {[%clk 0:01:40.7]} 27...
Rc8 {[%clk 0:00:38.6]} 28. Qe5+ {[%clk 0:01:35.5]} 28... Kg8 {[%clk 0:00:38]}
29. Rd4 {[%clk 0:01:35.1]} 29... Qc6 {[%clk 0:00:31.9]} 30. Rxa7 {[%clk
0:00:40.3]} 30... Qxc5 {[%clk 0:00:32.1]} 31. Qxc5 {[%clk 0:00:39.1]} 31... Rxc5
{[%clk 0:00:32.2]} 32. Rdd7 {[%clk 0:00:40]} 32... Rf5+ {[%clk 0:00:29.8]} 33.
Kg2 {[%clk 0:00:37.7]} 33... Rc8 {[%clk 0:00:28.5]} 34. g4 {[%clk 0:00:35.5]}
34... Rf6 {[%clk 0:00:20.6]} 35. Ra2 {[%clk 0:00:35.9]} 35... Rc4 {[%clk
0:00:19.9]} 36. h3 {[%clk 0:00:35]} 36... Re4 {[%clk 0:00:19.4]} 37. Rd3 {[%clk
0:00:32]} 37... Kg7 {[%clk 0:00:17.6]} 38. Rc2 {[%clk 0:00:29.2]} 38... g5
{[%clk 0:00:17.1]} 39. Kg3 {[%clk 0:00:28]} 39... Kg6 {[%clk 0:00:15.5]} 40. Ra3
{[%clk 0:00:27.6]} 40... Re5 {[%clk 0:00:12.3]} 41. Kg2 {[%clk 0:00:20.6]} 41...
Rf4 {[%clk 0:00:11.6]} 42. Rc8 {[%clk 0:00:19.1]} 42... Rfe4 {[%clk 0:00:09.6]}
43. Rg8+ {[%clk 0:00:17.5]} 43... Kh7 {[%clk 0:00:08.7]} 44. Rf8 {[%clk
0:00:16.6]} 44... Rxe2+ {[%clk 0:00:08.2]} 45. Kf3 {[%clk 0:00:17.2]} 45... Kg7
{[%clk 0:00:07.4]} 46. Rb8 {[%clk 0:00:17.8]} 46... Re1 {[%clk 0:00:06.4]} 47.
Rbb3 {[%clk 0:00:16.8]} 47... Rf1+ {[%clk 0:00:06]} 48. Kg2 {[%clk 0:00:16.8]}
48... Rf4 {[%clk 0:00:05.4]} 49. Rf3 {[%clk 0:00:16.8]} 49... Re2+ {[%clk
0:00:05.1]} 50. Kg3 {[%clk 0:00:17.1]} 50... Rxf3+ {[%clk 0:00:05.1]} 51. Kxf3
{[%clk 0:00:17.1]} 51... Rh2 {[%clk 0:00:04.6]} 52. Kg3 {[%clk 0:00:16.6]} 52...
Rb2 {[%clk 0:00:05.2]} 53. Ra5 {[%clk 0:00:17.1]} 53... Kg6 {[%clk 0:00:05.5]}
54. Ra3 {[%clk 0:00:16.6]} 54... e5 {[%clk 0:00:05.4]} 55. Rf3 {[%clk
0:00:15.9]} 55... f6 {[%clk 0:00:05.7]} 56. Re3 {[%clk 0:00:15.7]} 56... Rb4
{[%clk 0:00:06.1]} 57. Kf3 {[%clk 0:00:15.8]} 57... Kf7 {[%clk 0:00:06.2]} 58.
Kg3 {[%clk 0:00:16.7]} 58... Ke6 {[%clk 0:00:06.6]} 59. Rd3 {[%clk 0:00:17.1]}
59... Rd4 {[%clk 0:00:06.7]} 60. Ra3 {[%clk 0:00:16.7]} 60... e4 {[%clk
0:00:06.9]} 61. Kg2 {[%clk 0:00:16.7]} 61... Ke5 {[%clk 0:00:07.1]} 62. Ra5+
{[%clk 0:00:16.6]} 62... Rd5 {[%clk 0:00:07.5]} 63. Ra4 {[%clk 0:00:16.4]} 63...
Kf4 {[%clk 0:00:07.3]} 64. Ra2 {[%clk 0:00:16.4]} 64... Rd4 {[%clk 0:00:06.5]}
65. Kf2 {[%clk 0:00:15.8]} 65... e3+ {[%clk 0:00:06]} 66. Ke2 {[%clk 0:00:16.2]}
66... Rd2+ {[%clk 0:00:06.2]} 67. Rxd2 {[%clk 0:00:16.1]} 67... exd2 {[%clk
0:00:07]} 68. Kxd2 {[%clk 0:00:17]} 68... Kg3 {[%clk 0:00:07.6]} 69. Ke3 {[%clk
0:00:16.8]} 69... Kxh3 {[%clk 0:00:08.3]} 70. Kf3 {[%clk 0:00:17.1]} 70... Kh4
{[%clk 0:00:08.6]} 71. Kf2 {[%clk 0:00:16.1]} 71... Kxg4 {[%clk 0:00:08.9]} 72.
Kg2 {[%clk 0:00:17]} 72... f5 {[%clk 0:00:09.7]} 73. Kf2 {[%clk 0:00:16.8]}
73... f4 {[%clk 0:00:10.6]} 74. Kg2 {[%clk 0:00:17.7]} 74... f3+ {[%clk
0:00:11.1]} 75. Kf2 {[%clk 0:00:18.4]} 75... Kf4 {[%clk 0:00:11.6]} 76. Kf1
{[%clk 0:00:18.6]} 76... Kg3 {[%clk 0:00:12]} 77. Kg1 {[%clk 0:00:18.4]} 77...
f2+ {[%clk 0:00:12.4]} 78. Kf1 {[%clk 0:00:19.3]} 78... g4 {[%clk 0:00:12.5]}
79. Ke2 {[%clk 0:00:18.9]} 79... Kg2 {[%clk 0:00:12.9]} 0-1

[Event "*** Titled Tuesday Blitz"]
[Site "Chess.com"]
[Date "2020.05.12"]
[Round "6"]
[White "levallem"]
[Black "Moon_stone123"]
[Result "1-0"]
[WhiteElo "2163"]
[BlackElo "2504"]
[TimeControl "180+1"]
[EndTime "11:07:55 PDT"]
[Termination "levallem won by checkmate"]

1. d4 {[%clk 0:03:00.9]} 1... Nf6 {[%clk 0:02:58.8]} 2. c4 {[%clk 0:02:58.4]}
2... g6 {[%clk 0:02:59.3]} 3. Nc3 {[%clk 0:02:58.7]} 3... Bg7 {[%clk 0:02:59.2]}
4. Nf3 {[%clk 0:02:57.5]} 4... O-O {[%clk 0:02:59]} 5. e4 {[%clk 0:02:57.9]}
5... d6 {[%clk 0:02:58.7]} 6. Be2 {[%clk 0:02:58.4]} 6... c5 {[%clk 0:02:57.3]}
7. d5 {[%clk 0:02:48.8]} 7... e6 {[%clk 0:02:57.2]} 8. O-O {[%clk 0:02:47.3]}
8... exd5 {[%clk 0:02:57.2]} 9. exd5 {[%clk 0:02:46.6]} 9... Bf5 {[%clk
0:02:56.6]} 10. Bd3 {[%clk 0:02:41.1]} 10... Bxd3 {[%clk 0:02:55.6]} 11. Qxd3
{[%clk 0:02:42]} 11... Re8 {[%clk 0:02:54.5]} 12. Bg5 {[%clk 0:02:35.8]} 12...
a6 {[%clk 0:02:54]} 13. Rfe1 {[%clk 0:02:33.5]} 13... Nbd7 {[%clk 0:02:51.6]}
14. Ne4 {[%clk 0:02:30]} 14... Qc7 {[%clk 0:02:46.1]} 15. Nc3 {[%clk 0:02:20.4]}
15... Ng4 {[%clk 0:02:37.2]} 16. Nd2 {[%clk 0:01:58.4]} 16... Nge5 {[%clk
0:02:35.7]} 17. Qc2 {[%clk 0:01:56.2]} 17... Rab8 {[%clk 0:02:26.8]} 18. a4
{[%clk 0:01:55.2]} 18... h6 {[%clk 0:02:16.9]} 19. Bh4 {[%clk 0:01:52.6]} 19...
g5 {[%clk 0:02:14.5]} 20. Bg3 {[%clk 0:01:52.3]} 20... Ng6 {[%clk 0:02:13.9]}
21. f3 {[%clk 0:01:48.2]} 21... Rbd8 {[%clk 0:01:57.3]} 22. Kf1 {[%clk
0:01:39.9]} 22... Nde5 {[%clk 0:01:55.6]} 23. Re2 {[%clk 0:01:34.2]} 23... Qd7
{[%clk 0:01:53.7]} 24. Rae1 {[%clk 0:01:31.6]} 24... f5 {[%clk 0:01:49.9]} 25.
b3 {[%clk 0:01:27.3]} 25... Qf7 {[%clk 0:01:45.9]} 26. Kg1 {[%clk 0:01:19]}
26... h5 {[%clk 0:01:43.1]} 27. Nd1 {[%clk 0:01:08]} 27... h4 {[%clk 0:01:41.9]}
28. Bf2 {[%clk 0:01:07.6]} 28... Bf6 {[%clk 0:01:35.5]} 29. Qxf5 {[%clk
0:01:04.3]} 29... Nf4 {[%clk 0:01:32.6]} 30. Re3 {[%clk 0:00:58.5]} 30... Kg7
{[%clk 0:01:27.2]} 31. Ne4 {[%clk 0:00:58.1]} 31... Qg6 {[%clk 0:01:24.6]} 32.
Qxg6+ {[%clk 0:00:56.4]} 32... Kxg6 {[%clk 0:01:25.5]} 33. g3 {[%clk 0:00:52.6]}
33... hxg3 {[%clk 0:01:23.2]} 34. hxg3 {[%clk 0:00:53.5]} 34... Nfd3 {[%clk
0:01:23.1]} 35. Nxf6 {[%clk 0:00:50.7]} 35... Kxf6 {[%clk 0:01:19.1]} 36. R1e2
{[%clk 0:00:47.8]} 36... Rh8 {[%clk 0:01:15.8]} 37. Nc3 {[%clk 0:00:45.2]} 37...
Nxf2 {[%clk 0:01:11.4]} 38. Rxf2 {[%clk 0:00:43.8]} 38... Rh3 {[%clk 0:01:11.4]}
39. Ne4+ {[%clk 0:00:43.3]} 39... Kg6 {[%clk 0:01:08.3]} 40. Rh2 {[%clk
0:00:42]} 40... Rxh2 {[%clk 0:01:06.1]} 41. Kxh2 {[%clk 0:00:42.9]} 41... Rh8+
{[%clk 0:01:06.5]} 42. Kg2 {[%clk 0:00:43.1]} 42... Rd8 {[%clk 0:01:04.3]} 43.
Nxd6 {[%clk 0:00:41.8]} 43... Rxd6 {[%clk 0:01:01.9]} 44. Rxe5 {[%clk
0:00:41.9]} 44... Kf6 {[%clk 0:01:01.5]} 45. f4 {[%clk 0:00:41.9]} 45... gxf4
{[%clk 0:00:59.5]} 46. gxf4 {[%clk 0:00:42.8]} 46... Rb6 {[%clk 0:00:58.4]} 47.
Re3 {[%clk 0:00:42]} 47... Rd6 {[%clk 0:00:56.8]} 48. Kf3 {[%clk 0:00:42.1]}
48... Rd8 {[%clk 0:00:55.6]} 49. Re6+ {[%clk 0:00:42.2]} 49... Kf5 {[%clk
0:00:55.4]} 50. Re5+ {[%clk 0:00:40]} 50... Kf6 {[%clk 0:00:53.9]} 51. Ke4
{[%clk 0:00:40.2]} 51... Rh8 {[%clk 0:00:53.5]} 52. Re6+ {[%clk 0:00:39.2]}
52... Kf7 {[%clk 0:00:53.1]} 53. Rb6 {[%clk 0:00:39.3]} 53... Re8+ {[%clk
0:00:50.5]} 54. Kf5 {[%clk 0:00:39.1]} 54... Re7 {[%clk 0:00:50.5]} 55. d6
{[%clk 0:00:38]} 55... Rd7 {[%clk 0:00:49]} 56. Ke5 {[%clk 0:00:38.2]} 56... Ke8
{[%clk 0:00:49]} 57. f5 {[%clk 0:00:36.3]} 57... Kf7 {[%clk 0:00:47]} 58. f6
{[%clk 0:00:32.6]} 58... Kg6 {[%clk 0:00:43.6]} 59. a5 {[%clk 0:00:28.6]} 59...
Rf7 {[%clk 0:00:41]} 60. Kd5 {[%clk 0:00:23.1]} 60... Kxf6 {[%clk 0:00:38.5]}
61. d7+ {[%clk 0:00:20.5]} 61... Ke7 {[%clk 0:00:39]} 62. Rxb7 {[%clk
0:00:20.4]} 62... Rf5+ {[%clk 0:00:35.5]} 63. Kc6 {[%clk 0:00:20.6]} 63... Rf6+
{[%clk 0:00:35]} 64. Kxc5 {[%clk 0:00:20.3]} 64... Kd8 {[%clk 0:00:32.9]} 65.
Ra7 {[%clk 0:00:19.4]} 65... Rf3 {[%clk 0:00:29.9]} 66. b4 {[%clk 0:00:19.3]}
66... Rf6 {[%clk 0:00:29.4]} 67. b5 {[%clk 0:00:19.1]} 67... Rf5+ {[%clk
0:00:27.1]} 68. Kb4 {[%clk 0:00:17.7]} 68... axb5 {[%clk 0:00:26.1]} 69. cxb5
{[%clk 0:00:18.2]} 69... Rf4+ {[%clk 0:00:25.1]} 70. Kc5 {[%clk 0:00:18.8]}
70... Rf5+ {[%clk 0:00:26]} 71. Kc6 {[%clk 0:00:18.7]} 71... Rf6+ {[%clk
0:00:25.7]} 72. Kb7 {[%clk 0:00:19]} 72... Kxd7 {[%clk 0:00:25.4]} 73. b6 {[%clk
0:00:19.4]} 73... Rf5 {[%clk 0:00:25]} 74. a6 {[%clk 0:00:18.4]} 74... Rc5
{[%clk 0:00:25.1]} 75. Ra8 {[%clk 0:00:18.1]} 75... Rc1 {[%clk 0:00:22.7]} 76.
Rh8 {[%clk 0:00:18.4]} 76... Rc2 {[%clk 0:00:21.5]} 77. a7 {[%clk 0:00:18.7]}
77... Ke6 {[%clk 0:00:21.1]} 78. a8=Q {[%clk 0:00:19.1]} 78... Kd5 {[%clk
0:00:22]} 79. Qd8+ {[%clk 0:00:18.9]} 79... Kc4 {[%clk 0:00:22.9]} 80. Qc7+
{[%clk 0:00:18.3]} 80... Kb3 {[%clk 0:00:23.8]} 81. Qxc2+ {[%clk 0:00:18.7]}
81... Ka3 {[%clk 0:00:24.1]} 82. Kc7 {[%clk 0:00:19.6]} 82... Kb4 {[%clk
0:00:24.5]} 83. b7 {[%clk 0:00:19.8]} 83... Ka3 {[%clk 0:00:25.4]} 84. Rh3+
{[%clk 0:00:19.6]} 84... Kb4 {[%clk 0:00:24.9]} 85. Rb3+ {[%clk 0:00:20.5]}
85... Ka5 {[%clk 0:00:24.3]} 86. Qa2# {[%clk 0:00:21.4]} 1-0